[Event "27th Kavala Open 2018"]
[Site "Kavala"]
[Date "2018.08.09"]
[Round "7"]
[White "Papadopoulos, Georgios"]
[Black "Isaakidis, Alexandros"]
[Result "1/2-1/2"]
[ECO "A46"]
[WhiteElo "1726"]
[BlackElo "2137"]
[Annotator "NA"]
[PlyCount "46"]
[EventDate "2018.08.05"]
[EventType "swiss"]
[EventCountry "GRE"]
[SourceTitle "playchess.com"]
[Source "ChessBase"]
[SourceQuality "1"]
[TimeControl "40/5400+30:900+30"]

1. d4 {[%emt 0:00:18]} Nf6 {[%emt 0:00:21]} 2. Nf3 {[%emt 0:00:14]} e6 {[%emt 0:00:18]} 3. Bf4 {[%emt 0:00:08]} d5 {[%emt 0:00:14]} 4. e3 {[%emt 0:00:07]} Bd6 {[%emt 0:00:08]} 5. Bxd6 {[%emt 0:00:12]} Qxd6 {[%emt 0:00:10]} 6. c4 {[%emt 0:00:04]} c5 {[%emt 0:01:10]} 7. cxd5 {[%emt 0:12:07]} exd5 {[%emt 0:03:20]} 8. dxc5 {[%emt 0:02:31]} Qxc5 {[%emt 0:00:21]} 9. Nc3 {[%emt 0:00:17]} O-O {[%emt 0:01:04]} 10. Be2 {[%emt 0:03:19]} Nc6 {[%emt 0:07:19]} 11. O-O {[%emt 0:01:28]} Rd8 {[%emt 0:07:28]} 12. Nb5 {[%emt 0:02:41]} Qb6 {[%emt 0:02:31]} 13. Qb3 {[%emt 0:09:27]} Bg4 {[%emt 0:13:02]} 14. h3 {[%emt 0:12:25]} Na5 {[%emt 0:12:20]} 15. Qa4 {[%emt 0:08:41]} Bxf3 {[%emt 0:04:47]} 16. Bxf3 Nc4 17. b3 {[%emt 0:00:40]} Nd2 {[%emt 0:01:55]} 18. Rfd1 {[%emt 0:00:12]} Nxf3+ {[%emt 0:00:18]} 19. gxf3 {[%emt 0:00:01]} a6 {[%emt 0:04:31]} 20. Nd4 {[%emt 0:00:34]} Nd7 {[%emt 0:03:04]} 21. Ne2 {[%emt 0:02:37]} Qg6+ {[%emt 0:09:05]} 22. Qg4 {[%emt 0:02:38]} Ne5 {[%emt 0:01:01]} 23. Qxg6 {[%emt 0:01:24]} Nxf3+ {[%emt 0:00:50]} 1/2-1/2

[Event "27th Kavala Open 2018"]
[Site "Kavala"]
[Date "2018.08.10"]
[Round "8"]
[White "Theodorou, Nikolas"]
[Black "Petrov, Martin"]
[Result "1/2-1/2"]
[ECO "B96"]
[WhiteElo "2532"]
[BlackElo "2456"]
[Annotator "ChessBase"]
[PlyCount "94"]
[EventDate "2018.08.05"]
[EventType "swiss"]
[EventCountry "GRE"]
[SourceTitle "playchess.com"]
[Source "ChessBase"]
[SourceQuality "1"]
[TimeControl "40/5400+30:900+30"]

1. e4 {[%emt 0:00:03]} c5 {[%emt 0:04:41]} 2. Nf3 {[%emt 0:00:06]} d6 {[%emt 0:02:30]} 3. d4 {[%emt 0:00:36]} cxd4 {[%emt 0:00:08]} 4. Nxd4 {[%emt 0:00:05]} Nf6 {[%emt 0:00:07]} 5. Nc3 {[%emt 0:00:07]} a6 {[%emt 0:00:46]} 6. Bg5 {[%emt 0:00:21]} e6 {[%emt 0:05:12]} 7. f4 {[%emt 0:00:12]} h6 {[%emt 0:00:04]} 8. Bh4 {[%emt 0:00:06]} Qb6 {[%emt 0:01:02]} 9. a3 {[%emt 0:00:20]} Nbd7 {[%emt 0:01:59]} 10. Bf2 {[%emt 0:00:13]} Qc7 {[%emt 0:00:47]} 11. Qf3 {[%emt 0:00:20]} b5 {[%emt 0:09:26]} 12. O-O-O {[%emt 0:01:04]} Bb7 {[%emt 0:00:53]} 13. g4 {[%emt 0:04:38]} Nc5 {[%emt 0:09:59]} 14. Re1 {[%emt 0:15:02]} Be7 {[%emt 0:04:51]} 15. h4 {[%emt 0:37:38]} d5 {[%emt 0:01:30]} 16. e5 {[%emt 0:00:26]} Nfe4 {[%emt 0:00:30]} 17. Nxe4 {[%emt 0:04:35]} dxe4 {[%emt 0:02:09]} 18. Qe3 {[%emt 0:00:50]} b4 {[%emt 0:15:29]} 19. axb4 {[%emt 0:02:25]} Nd3+ {[%emt 0:00:04]} 20. Bxd3 {[%emt 0:00:55]} exd3 {[%emt 0:00:05]} 21. Rh3 {[%emt 0:03:37]} Bxb4 {[%emt 0:03:28]} 22. c3 {[%emt 0:03:15]} Bxc3 {[%emt 0:00:09]} 23. bxc3 {[%emt 0:00:01]} Qxc3+ {[%emt 0:00:06]} 24. Kd1 {[%emt 0:00:03]} Qa1+ {[%emt 0:00:30]} 25. Qc1 {[%emt 0:01:36]} Qa2 {[%emt 0:00:40]} 26. Rxd3 {[%emt 0:04:55]} Qxf2 {[%emt 0:00:34]} 27. Qa3 {[%emt 0:03:16]} Rb8 {[%emt 0:14:04]} 28. Re2 {[%emt 0:07:47]} Qf1+ {[%emt 0:04:49]} 29. Kd2 {[%emt 0:00:22]} Bd5 {[%emt 0:02:51]} 30. f5 {[%emt 0:02:13]} Rb1 {[%emt 0:02:52]} 31. f6 {[%emt 0:01:36]} gxf6 {[%emt 0:02:23]} 32. exf6 {[%emt 0:00:33]} Qxf6 {[%emt 0:01:21]} 33. Kc2 {[%emt 0:02:34]} Qf1 {[%emt 0:02:44]} 34. Nf5 {[%emt 0:01:39]} Rc1+ {[%emt 0:02:21]} 35. Kb2 {[%emt 0:00:46]} Rb1+ {[%emt 0:00:41]} 36. Kc2 {[%emt 0:00:11]} Rc1+ {[%emt 0:00:35]} 37. Kb2 {[%emt 0:00:19]} Rc7 {[%emt 0:00:42]} 38. Ng7+ {[%emt 0:03:29]} Kd7 {[%emt 0:01:26]} 39. Rxd5+ {[%emt 0:00:31]} exd5 {[%emt 0:00:03]} 40. Re7+ {[%emt 0:00:00]} Kc8 {[%emt 0:00:00]} 41. Rxc7+ {[%emt 0:02:23]} Kxc7 {[%emt 0:00:18]} 42. Qc5+ {[%emt 0:00:08]} Kb7 {[%emt 0:08:29]} 43. Qxd5+ {[%emt 0:00:06]} Kb6 {[%emt 0:00:06]} 44. Qd6+ {[%emt 0:00:03]} Kb5 {[%emt 0:01:28]} 45. Qd5+ {[%emt 0:00:08]} Kb6 {[%emt 0:00:23]} 46. Qd6+ {[%emt 0:00:19]} Kb5 {[%emt 0:01:15]} 47. Qd5+ {[%emt 0:00:05]} Kb6 {[%emt 0:02:28]} 1/2-1/2

[Event "27th Kavala Open 2018"]
[Site "Kavala"]
[Date "2018.08.10"]
[Round "8"]
[White "Magalashvili, Davit"]
[Black "Kelires, Andreas"]
[Result "0-1"]
[ECO "A07"]
[WhiteElo "2508"]
[BlackElo "2531"]
[Annotator "ChessBase"]
[PlyCount "120"]
[EventDate "2018.08.05"]
[EventType "swiss"]
[EventCountry "GRE"]
[SourceTitle "playchess.com"]
[Source "ChessBase"]
[SourceQuality "1"]
[TimeControl "40/5400+30:900+30"]

1. Nf3 {[%emt 0:00:03]} d5 {[%emt 0:00:09]} 2. g3 {[%emt 0:00:45]} Nf6 {[%emt 0:01:18]} 3. Bg2 {[%emt 0:00:06]} c6 {[%emt 0:00:07]} 4. O-O {[%emt 0:00:09]} Bg4 {[%emt 0:00:10]} 5. h3 {[%emt 0:00:12]} Bh5 {[%emt 0:00:12]} 6. d4 {[%emt 0:00:17]} e6 {[%emt 0:01:24]} 7. c4 {[%emt 0:00:13]} Nbd7 {[%emt 0:01:23]} 8. cxd5 {[%emt 0:00:11]} cxd5 {[%emt 0:09:18]} 9. Qb3 {[%emt 0:01:00]} Qb6 {[%emt 0:02:46]} 10. Qxb6 {[%emt 0:00:13]} Nxb6 {[%emt 0:00:05]} 11. g4 {[%emt 0:00:11]} Bg6 {[%emt 0:00:06]} 12. Ne5 {[%emt 0:00:03]} Bb4 {[%emt 0:13:25]} 13. a3 {[%emt 0:03:47]} Be7 {[%emt 0:00:19]} 14. Nxg6 {[%emt 0:05:43]} hxg6 {[%emt 0:03:54]} 15. Nc3 {[%emt 0:00:11]} Rc8 {[%emt 0:04:22]} 16. a4 {[%emt 0:04:52]} Nc4 {[%emt 0:14:02]} 17. a5 {[%emt 0:04:56]} O-O {[%emt 0:14:42]} 18. g5 {[%emt 0:03:10]} Nh5 {[%emt 0:01:12]} 19. e4 {[%emt 0:03:55]} dxe4 {[%emt 0:00:53]} 20. Nxe4 {[%emt 0:03:31]} Rc7 {[%emt 0:05:31]} 21. Nc3 {[%emt 0:04:30]} a6 {[%emt 0:01:05]} 22. Ra4 {[%emt 0:11:23]} Rd8 {[%emt 0:09:09]} 23. d5 {[%emt 0:04:16]} b5 {[%emt 0:00:20]} 24. axb6 {[%emt 0:01:25]} Nxb6 {[%emt 0:00:04]} 25. d6 {[%emt 0:04:17]} Rxd6 {[%emt 0:02:45]} 26. Rxa6 {[%emt 0:00:41]} Nc4 {[%emt 0:00:45]} 27. Ra8+ {[%emt 0:05:49]} Rd8 {[%emt 0:00:07]} 28. Rxd8+ {[%emt 0:00:11]} Bxd8 {[%emt 0:00:00]} 29. b4 {[%emt 0:01:24]} Ne5 {[%emt 0:02:40]} 30. Bd2 {[%emt 0:04:16]} Rc4 {[%emt 0:03:03]} 31. Ne4 {[%emt 0:03:29]} Nd3 {[%emt 0:02:19]} 32. Ra1 {[%emt 0:05:31]} Bc7 {[%emt 0:01:48]} 33. b5 {[%emt 0:09:43]} Nhf4 {[%emt 0:00:51]} 34. Ra8+ {[%emt 0:01:02]} Kh7 {[%emt 0:00:07]} 35. Rc8 {[%emt 0:01:14]} Nd5 {[%emt 0:01:55]} 36. Nd6 {[%emt 0:12:51]} Rc5 {[%emt 0:00:03]} 37. Rxc7 {[%emt 0:01:47]} Rxc7 {[%emt 0:02:14]} 38. Bxd5 {[%emt 0:01:04]} exd5 {[%emt 0:00:08]} 39. b6 {[%emt 0:00:13]} Rc6 {[%emt 0:00:23]} 40. b7 {[%emt 0:00:00]} Rb6 {[%emt 0:00:00]} 41. Kg2 {[%emt 0:07:51]} Rb1 {[%emt 0:03:03]} 42. Be3 {[%emt 0:02:51]} Ne5 {[%emt 0:01:02]} 43. Bf4 {[%emt 0:02:54]} Nc6 {[%emt 0:00:22]} 44. Kf3 {[%emt 0:01:07]} Rb3+ {[%emt 0:01:26]} 45. Ke2 {[%emt 0:00:49]} Na5 {[%emt 0:01:02]} 46. Nxf7 {[%emt 0:01:10]} Rxb7 {[%emt 0:01:21]} 47. Ne5 {[%emt 0:00:08]} Nc4 {[%emt 0:04:22]} 48. Nc6 {[%emt 0:00:30]} Rb2+ {[%emt 0:01:36]} 49. Kf3 {[%emt 0:00:37]} Rb3+ {[%emt 0:01:56]} 50. Be3 {[%emt 0:01:54]} Rc3 {[%emt 0:04:03]} 51. Nd4 {[%emt 0:00:56]} Kg8 {[%emt 0:01:00]} 52. Nb5 {[%emt 0:00:25]} Rb3 {[%emt 0:00:24]} 53. Nd4 {[%emt 0:00:05]} Rb7 {[%emt 0:00:25]} 54. Ne6 {[%emt 0:01:17]} Re7 {[%emt 0:00:52]} 55. Nf4 {[%emt 0:00:15]} Rd7 {[%emt 0:00:34]} 56. Bd4 {[%emt 0:00:36]} Kf7 {[%emt 0:00:36]} 57. Ke2 {[%emt 0:00:29]} Na5 {[%emt 0:01:18]} 58. Kd3 {[%emt 0:00:43]} Nc6 {[%emt 0:00:04]} 59. h4 {[%emt 0:00:48]} Rb7 {[%emt 0:01:28]} 60. Nxd5 {[%emt 0:00:25]} Rd7 {[%emt 0:00:07]} 0-1

[Event "27th Kavala Open 2018"]
[Site "Kavala"]
[Date "2018.08.10"]
[Round "8"]
[White "Sandalakis, Angelos"]
[Black "Papadopoulos, Georgios"]
[Result "1-0"]
[ECO "C47"]
[WhiteElo "2444"]
[BlackElo "1726"]
[Annotator "NA"]
[PlyCount "79"]
[EventDate "2018.08.05"]
[EventType "swiss"]
[EventCountry "GRE"]
[SourceTitle "playchess.com"]
[Source "ChessBase"]
[SourceQuality "1"]
[TimeControl "40/5400+30:900+30"]

1. e4 {[%emt 0:00:02]} e5 {[%emt 0:10:27]} 2. Nf3 {[%emt 0:00:08]} Nc6 {[%emt 0:00:06]} 3. Nc3 {[%emt 0:00:06]} Nf6 {[%emt 0:01:25]} 4. a3 {[%emt 0:00:07]} d5 {[%emt 0:05:01]} 5. Bb5 {[%emt 0:00:10]} d4 {[%emt 0:11:14]} 6. Ne2 {[%emt 0:00:14]} Nxe4 {[%emt 0:01:09]} 7. d3 {[%emt 0:00:11]} Nd6 {[%emt 0:12:30]} 8. Bxc6+ {[%emt 0:00:42]} bxc6 {[%emt 0:00:01]} 9. Nxe5 {[%emt 0:00:11]} c5 {[%emt 0:00:18]} 10. O-O {[%emt 0:02:53]} Bd7 {[%emt 0:11:51]} 11. Nf4 {[%emt 0:05:55]} Be7 {[%emt 0:02:59]} 12. Qh5 {[%emt 0:07:20]} O-O {[%emt 0:13:40]} 13. Nxd7 {[%emt 0:05:56]} Qxd7 {[%emt 0:00:11]} 14. Qxc5 {[%emt 0:02:09]} Nf5 {[%emt 0:02:03]} 15. Qd5 {[%emt 0:01:44]} Bd6 {[%emt 0:00:06]} 16. Qf3 {[%emt 0:02:12]} Rae8 {[%emt 0:06:34]} 17. Qg4 {[%emt 0:05:13]} g6 {[%emt 0:06:05]} 18. Bd2 {[%emt 0:15:36]} Bxf4 {[%emt 0:05:32]} 19. Qxf4 {[%emt 0:01:12]} Qc6 {[%emt 0:00:07]} 20. Bb4 {[%emt 0:00:40]} Qxc2 {[%emt 0:01:40]} 21. Bxf8 {[%emt 0:00:25]} Rxf8 {[%emt 0:01:15]} 22. g4 {[%emt 0:04:26]} Ng7 {[%emt 0:00:17]} 23. Qxd4 {[%emt 0:00:17]} Ne6 {[%emt 0:00:22]} 24. Qc4 {[%emt 0:00:43]} Qxb2 {[%emt 0:00:31]} 25. Ra2 {[%emt 0:01:25]} Qb6 {[%emt 0:01:53]} 26. Re2 {[%emt 0:01:04]} g5 {[%emt 0:00:40]} 27. Rc1 {[%emt 0:09:24]} Qd6 {[%emt 0:01:08]} 28. Re3 {[%emt 0:02:04]} c5 {[%emt 0:03:30]} 29. Qe4 {[%emt 0:02:46]} h6 {[%emt 0:01:14]} 30. Qe5 {[%emt 0:00:57]} Qxe5 {[%emt 0:00:11]} 31. Rxe5 {[%emt 0:00:07]} Rb8 {[%emt 0:00:40]} 32. Re3 {[%emt 0:00:56]} Rb3 {[%emt 0:00:21]} 33. d4 {[%emt 0:00:26]} c4 {[%emt 0:00:54]} 34. Rxb3 {[%emt 0:02:06]} cxb3 {[%emt 0:00:01]} 35. d5 {[%emt 0:00:13]} Nf4 {[%emt 0:00:46]} 36. Rc8+ {[%emt 0:01:00]} Kg7 {[%emt 0:00:04]} 37. d6 {[%emt 0:00:10]} Nd5 {[%emt 0:00:25]} 38. Rc1 {[%emt 0:00:41]} Kf6 {[%emt 0:00:58]} 39. d7 {[%emt 0:00:07]} Ke7 {[%emt 0:00:16]} 40. Rd1 {[%emt 0:00:00]} 1-0

[Event "27th Kavala Open 2018"]
[Site "Kavala"]
[Date "2018.08.10"]
[Round "8"]
[White "Tsolakidou, Stavroula"]
[Black "Mavrikakis, Georgios"]
[Result "1-0"]
[ECO "A04"]
[WhiteElo "2418"]
[BlackElo "2119"]
[Annotator "NA"]
[PlyCount "41"]
[EventDate "2018.08.05"]
[EventType "swiss"]
[EventCountry "GRE"]
[SourceTitle "playchess.com"]
[Source "ChessBase"]
[SourceQuality "1"]
[TimeControl "40/5400+30:900+30"]

1. Nf3 {[%emt 0:13:10]} f5 {[%emt 0:00:13]} 2. d3 {[%emt 0:00:06]} Nc6 {[%emt 0:00:16]} 3. e4 {[%emt 0:00:08]} e5 {[%emt 0:00:17]} 4. d4 {[%emt 0:00:19]} fxe4 {[%emt 0:19:31]} 5. Nxe5 {[%emt 0:00:18]} Qf6 {[%emt 0:00:57]} 6. Nxc6 {[%emt 0:20:12]} dxc6 {[%emt 0:06:02]} 7. h4 {[%emt 0:06:48]} Bf5 {[%emt 0:13:12]} 8. g4 {[%emt 0:14:23]} Be6 {[%emt 0:00:26]} 9. Be2 {[%emt 0:04:46]} h6 {[%emt 0:18:51]} 10. Be3 {[%emt 0:00:14]} O-O-O {[%emt 0:05:10]} 11. Nd2 {[%emt 0:03:14]} Qe7 {[%emt 0:03:25]} 12. c4 {[%emt 0:02:42]} Qb4 {[%emt 0:01:15]} 13. Qc2 {[%emt 0:00:50]} Nf6 {[%emt 0:00:43]} 14. Rg1 {[%emt 0:00:44]} Re8 {[%emt 0:03:19]} 15. O-O-O {[%emt 0:01:14]} Bd6 {[%emt 0:05:15]} 16. g5 {[%emt 0:01:55]} hxg5 {[%emt 0:00:27]} 17. a3 {[%emt 0:03:02]} Qa5 {[%emt 0:00:58]} 18. Rxg5 {[%emt 0:06:23]} Qa6 {[%emt 0:00:21]} 19. Nb3 {[%emt 0:05:20]} b6 {[%emt 0:02:46]} 20. d5 {[%emt 0:00:44]} cxd5 {[%emt 0:03:06]} 21. cxd5 {[%emt 0:00:21]} 1-0

[Event "27th Kavala Open 2018"]
[Site "Kavala"]
[Date "2018.08.10"]
[Round "8"]
[White "Bulmaga, Irina"]
[Black "Papadopoulos, Nikolaos"]
[Result "1-0"]
[ECO "B09"]
[WhiteElo "2401"]
[BlackElo "2258"]
[Annotator "NA"]
[PlyCount "85"]
[EventDate "2018.08.05"]
[EventType "swiss"]
[EventCountry "GRE"]
[SourceTitle "playchess.com"]
[Source "ChessBase"]
[SourceQuality "1"]
[TimeControl "40/5400+30:900+30"]

1. e4 {[%emt 0:00:06]} d6 {[%emt 0:00:24]} 2. d4 {[%emt 0:00:06]} Nf6 {[%emt 0:00:09]} 3. Nc3 {[%emt 0:00:08]} g6 {[%emt 0:00:14]} 4. f4 {[%emt 0:00:23]} Bg7 {[%emt 0:00:19]} 5. Nf3 {[%emt 0:00:13]} O-O {[%emt 0:00:43]} 6. e5 {[%emt 0:00:22]} dxe5 {[%emt 0:01:18]} 7. fxe5 {[%emt 0:00:06]} Nd5 {[%emt 0:03:04]} 8. Bc4 {[%emt 0:00:24]} Be6 {[%emt 0:18:40]} 9. Bxd5 {[%emt 0:00:54]} Bxd5 {[%emt 0:00:14]} 10. Nxd5 {[%emt 0:00:07]} Qxd5 {[%emt 0:00:10]} 11. Qe2 {[%emt 0:00:24]} c5 {[%emt 0:24:15]} 12. c4 {[%emt 0:00:59]} Qd7 {[%emt 0:00:05]} 13. d5 {[%emt 0:00:30]} e6 {[%emt 0:00:11]} 14. d6 {[%emt 0:00:26]} f6 {[%emt 0:00:27]} 15. exf6 {[%emt 0:01:19]} Rxf6 {[%emt 0:01:30]} 16. Bg5 {[%emt 0:00:55]} Rf7 {[%emt 0:02:06]} 17. O-O-O {[%emt 0:03:00]} Nc6 {[%emt 0:00:19]} 18. Rhe1 {[%emt 0:12:19]} Re8 {[%emt 0:18:00]} 19. Be7 {[%emt 0:07:12]} e5 {[%emt 0:01:57]} 20. Ng5 {[%emt 0:12:41]} Rf5 {[%emt 0:05:29]} 21. Ne4 {[%emt 0:11:56]} b6 {[%emt 0:03:24]} 22. Kb1 {[%emt 0:03:10]} Rb8 {[%emt 0:05:42]} 23. Rd5 {[%emt 0:14:59]} Nxe7 {[%emt 0:03:08]} 24. dxe7 {[%emt 0:00:06]} Qxe7 {[%emt 0:00:08]} 25. Red1 {[%emt 0:01:32]} Rf7 {[%emt 0:04:50]} 26. Qd2 {[%emt 0:03:33]} Rbf8 {[%emt 0:01:00]} 27. Qe1 {[%emt 0:02:16]} a6 {[%emt 0:00:44]} 28. Qe2 {[%emt 0:03:30]} Rf4 {[%emt 0:01:13]} 29. g3 {[%emt 0:00:40]} Rf3 {[%emt 0:00:22]} 30. Rd7 {[%emt 0:00:30]} Qe6 {[%emt 0:00:19]} 31. a3 {[%emt 0:00:54]} Qf5 {[%emt 0:00:41]} 32. Ka2 {[%emt 0:03:41]} b5 {[%emt 0:00:42]} 33. R1d3 {[%emt 0:04:29]} Rf1 {[%emt 0:00:37]} 34. Rb7 {[%emt 0:02:51]} Qe6 {[%emt 0:02:14]} 35. Rdd7 {[%emt 0:01:05]} Bh8 {[%emt 0:00:40]} 36. Nxc5 {[%emt 0:02:15]} Qxc4+ {[%emt 0:01:31]} 37. Qxc4+ {[%emt 0:00:06]} bxc4 {[%emt 0:00:01]} 38. Ne6 {[%emt 0:00:20]} Rc8 {[%emt 0:01:33]} 39. Rxh7 {[%emt 0:02:35]} Rf2 {[%emt 0:00:25]} 40. Rh6 {[%emt 0:00:00]} Rf6 {[%emt 0:00:00]} 41. Rbh7 {[%emt 0:02:24]} Rxe6 {[%emt 0:09:43]} 42. Rxh8+ {[%emt 0:00:08]} Kg7 {[%emt 0:00:07]} 43. R6h7+ 1-0

[Event "27th Kavala Open 2018"]
[Site "Kavala"]
[Date "2018.08.10"]
[Round "8"]
[White "Gouloutis, Nikolaos"]
[Black "Loutragotis, Dimitrios"]
[Result "1-0"]
[ECO "A04"]
[WhiteElo "2391"]
[BlackElo "2169"]
[Annotator "NA"]
[PlyCount "97"]
[EventDate "2018.08.05"]
[EventType "swiss"]
[EventCountry "GRE"]
[SourceTitle "playchess.com"]
[Source "ChessBase"]
[SourceQuality "1"]
[TimeControl "40/5400+30:900+30"]

1. Nf3 {[%emt 0:12:07]} g6 {[%emt 0:00:09]} 2. g3 {[%emt 0:00:51]} Bg7 {[%emt 0:00:08]} 3. Bg2 {[%emt 0:00:03]} d6 {[%emt 0:00:20]} 4. O-O {[%emt 0:00:07]} Nd7 {[%emt 0:00:11]} 5. c4 {[%emt 0:05:25]} e5 {[%emt 0:00:12]} 6. Nc3 {[%emt 0:00:04]} Ne7 {[%emt 0:00:18]} 7. d3 {[%emt 0:15:08]} O-O {[%emt 0:00:57]} 8. Rb1 {[%emt 0:00:03]} f5 {[%emt 0:04:38]} 9. Qc2 {[%emt 0:02:15]} Nf6 {[%emt 0:01:40]} 10. b4 {[%emt 0:00:25]} h6 {[%emt 0:01:36]} 11. a4 {[%emt 0:08:55]} Be6 {[%emt 0:08:22]} 12. b5 {[%emt 0:03:35]} Nh5 {[%emt 0:04:29]} 13. Ba3 {[%emt 0:01:13]} Rb8 {[%emt 0:06:43]} 14. Rfc1 {[%emt 0:04:42]} g5 {[%emt 0:01:55]} 15. Nd5 {[%emt 0:07:43]} Rf7 {[%emt 0:10:02]} 16. Nd2 {[%emt 0:02:03]} Nf6 {[%emt 0:00:51]} 17. Nb4 {[%emt 0:03:30]} g4 {[%emt 0:07:31]} 18. a5 {[%emt 0:03:35]} h5 {[%emt 0:03:18]} 19. c5 {[%emt 0:11:52]} d5 {[%emt 0:02:22]} 20. a6 {[%emt 0:00:37]} Bh6 {[%emt 0:16:41]} 21. e3 {[%emt 0:03:28]} f4 {[%emt 0:03:39]} 22. exf4 {[%emt 0:00:03]} exf4 {[%emt 0:00:05]} 23. Re1 {[%emt 0:00:04]} Bf5 {[%emt 0:01:04]} 24. Nb3 {[%emt 0:02:22]} f3 {[%emt 0:03:05]} 25. Bf1 {[%emt 0:00:04]} b6 {[%emt 0:02:48]} 26. Nd4 {[%emt 0:01:24]} Bd7 {[%emt 0:02:11]} 27. cxb6 {[%emt 0:06:33]} Rxb6 {[%emt 0:00:52]} 28. Nbc6 {[%emt 0:00:27]} Nxc6 {[%emt 0:02:03]} 29. bxc6 {[%emt 0:00:04]} Bc8 {[%emt 0:00:38]} 30. Rxb6 {[%emt 0:00:06]} cxb6 {[%emt 0:00:06]} 31. Qa4 {[%emt 0:01:46]} Ne8 {[%emt 0:02:56]} 32. Ne6 {[%emt 0:02:56]} Bxe6 {[%emt 0:03:06]} 33. Rxe6 {[%emt 0:00:05]} Bg7 {[%emt 0:00:10]} 34. h3 {[%emt 0:00:42]} Nc7 {[%emt 0:00:50]} 35. Rd6 {[%emt 0:00:48]} Qg5 {[%emt 0:00:23]} 36. Rd7 {[%emt 0:00:39]} Be5 {[%emt 0:03:48]} 37. Bd6 {[%emt 0:02:06]} Rxd7 {[%emt 0:02:25]} 38. Bxe5 {[%emt 0:00:10]} Rf7 {[%emt 0:00:41]} 39. Qd4 {[%emt 0:00:39]} Qf5 {[%emt 0:01:40]} 40. Qe3 {[%emt 0:00:00]} Ne6 {[%emt 0:00:00]} 41. d4 {[%emt 0:04:20]} Ng5 {[%emt 0:07:04]} 42. h4 {[%emt 0:04:55]} Nh3+ {[%emt 0:04:24]} 43. Kh2 {[%emt 0:00:05]} Rf8 {[%emt 0:03:29]} 44. c7 {[%emt 0:02:37]} Qe6 {[%emt 0:03:37]} 45. Bxh3 {[%emt 0:02:56]} gxh3 {[%emt 0:00:04]} 46. Qg5+ {[%emt 0:00:03]} Kf7 {[%emt 0:00:24]} 47. Qg7+ {[%emt 0:00:04]} Ke8 {[%emt 0:00:19]} 48. Bd6 {[%emt 0:00:07]} Rg8 {[%emt 0:02:56]} 49. c8=Q+ {[%emt 0:00:10]} 1-0

[Event "27th Kavala Open 2018"]
[Site "Kavala"]
[Date "2018.08.10"]
[Round "8"]
[White "Schitco, Ivan"]
[Black "Kakushadze, Ilia"]
[Result "1/2-1/2"]
[ECO "A57"]
[WhiteElo "2377"]
[BlackElo "2149"]
[Annotator "NA"]
[PlyCount "46"]
[EventDate "2018.08.05"]
[EventType "swiss"]
[EventCountry "GRE"]
[SourceTitle "playchess.com"]
[Source "ChessBase"]
[SourceQuality "1"]
[TimeControl "40/5400+30:900+30"]

1. d4 {[%emt 0:00:03]} Nf6 {[%emt 0:00:04]} 2. c4 {[%emt 0:00:08]} c5 {[%emt 0:00:09]} 3. d5 {[%emt 0:00:11]} b5 {[%emt 0:00:05]} 4. Nd2 {[%emt 0:00:10]} bxc4 {[%emt 0:00:24]} 5. e4 {[%emt 0:00:10]} e6 {[%emt 0:00:07]} 6. Bxc4 {[%emt 0:00:23]} exd5 {[%emt 0:00:13]} 7. exd5 {[%emt 0:00:05]} d6 {[%emt 0:00:06]} 8. Ne2 {[%emt 0:00:26]} Be7 {[%emt 0:00:14]} 9. O-O {[%emt 0:01:43]} O-O {[%emt 0:00:05]} 10. Re1 {[%emt 0:07:09]} Nbd7 {[%emt 0:02:40]} 11. b3 {[%emt 0:04:00]} Nb6 {[%emt 0:00:28]} 12. Nf4 {[%emt 0:04:09]} Rb8 {[%emt 0:02:24]} 13. Bb2 {[%emt 0:08:14]} Ng4 {[%emt 0:05:42]} 14. Ne6 {[%emt 0:16:17]} fxe6 {[%emt 0:00:08]} 15. Qxg4 {[%emt 0:01:12]} e5 {[%emt 0:00:05]} 16. Qe2 {[%emt 0:01:01]} Nxc4 {[%emt 0:21:47]} 17. Nxc4 {[%emt 0:01:00]} Ba6 {[%emt 0:00:10]} 18. Bc3 {[%emt 0:04:43]} Qc8 {[%emt 0:09:39]} 19. Qd3 {[%emt 0:11:23]} Rf4 {[%emt 0:07:11]} 20. Re4 {[%emt 0:11:46]} Qf5 {[%emt 0:13:01]} 21. f3 {[%emt 0:01:00]} Bh4 {[%emt 0:00:37]} 22. Qe2 {[%emt 0:07:16]} Qg6 {[%emt 0:06:52]} 23. Rf1 {[%emt 0:09:58]} Rbf8 {[%emt 0:03:48]} 1/2-1/2